[Event "Marienbad B1-IM 2024"]
[Site "Marianske Lazne"]
[Date "2024.01.18"]
[Round "7.13"]
[White "Dobrowolski, Piotr"]
[Black "Rasmussen, Casper"]
[Result "1-0"]
[ECO "C43"]
[WhiteElo "2401"]
[BlackElo "2265"]
[Annotator "TA"]
[PlyCount "81"]
[EventDate "2024.01.10"]
[EventType "tourn"]
[EventCountry "CZE"]
[SourceTitle "playchess.com"]
[Source "ChessBase"]
[SourceQuality "1"]
[TimeControl "40/5400+30:1800+30"]

{[%evp 9,81,12,12,10,7,4,42,38,40,11,30,20,45,31,64,66,138,-217,144,141,129,132,154,139,172,169,175,167,235,72,89,73,161,158,188,74,215,208,215,218,298,184,163,69,74,73,74,81,73,85,118,105,156,133,198,198,174,170,170,172,204,205,287,286,276,285,279,283,349,347,387,374,432,425]} 1. e4 {[%emt 0:00:16]} e5 {[%emt 0:00:08]} 2. Nf3 {[%emt 0:00:34]} Nf6 {[%emt 0:00:07]} 3. d4 {[%emt 0:01:18]} Nxe4 {[%emt 0:00:14]} 4. dxe5 {[%emt 0:00:49]} d5 {[%emt 0:03:16]} 5. Nbd2 {[%emt 0:00:28]} Nxd2 {[%emt 0:03:06]} 6. Bxd2 {[%emt 0:00:37] C43: Petroff Defence: 3 d4.} Be7 {[%emt 0:00:32]} 7. Bd3 {[%emt 0:00:59]} Bg4 {[%emt 0:02:58]} 8. h3 {[%emt 0:06:05] White is slightly better.} Bh5 {[%emt 0:00:40]} 9. O-O {[%emt 0:02:52]} Nc6 {[%emt 0:10:53]} 10. Re1 {[%emt 0:01:57]} O-O {[%emt 0:06:39]} 11. c3 {[%emt 0:09:24]} Qd7 {[%emt 0:11:44] [#]} 12. Qc2 $146 {[%emt 0:04:36]} ({Predecessor:} 12. Bf4 Rae8 {½-½ Kastelic,M (2270)-Grosar,A (2417) SLO-chT 18th 2008 (9)}) 12... Bxf3 {[%emt 0:00:55]} (12... Bg6 $14) 13. Bxh7+ $16 {[%emt 0:00:08]} Kh8 {[%emt 0:00:04][%cal Og7g6] aiming for ...g6!} 14. Bf5 {[%emt 0:00:12]} Qd8 {[%emt 0:07:45] ...Bh5 would be deadly.} 15. gxf3 {[%emt 0:00:14]} Bc5 {[%emt 0:00:16]} 16. Qa4 {[%emt 0:12:37] Prevents Qh4. Qg4 is the strong threat. White is more active.} d4 {[%emt 0:03:45]} 17. Rad1 $1 {[%emt 0:24:01]} g6 {[%emt 0:03:18]} 18. Bg4 {[%emt 0:01:14]} Qh4 {[%emt 0:00:16]} (18... Qe7 {was necessary.} 19. Qb3 Bb6) 19. c4 $2 {[%emt 0:11:25]} (19. Bd7 $18 {is the precise move to win.}) 19... d3 {[%emt 0:08:15]} 20. Be3 {[%emt 0:00:04]} Bb4 {[%emt 0:00:08]} (20... d2 $16 21. Rxd2 (21. Bxc5 dxe1=B 22. Rxe1 Rfe8 $11) 21... Bb4) 21. Rf1 $18 {[%emt 0:00:45]} Rad8 {[%emt 0:00:31]} 22. Kg2 {[%emt 0:03:49]} (22. Bxa7 $2 {too greedy.} Ra8 23. Rxd3 Rxa7 $19) (22. Qb5 $18 {is more deadly.}) 22... f5 {[%emt 0:13:23]} (22... Qe7 $16) 23. exf6 {[%emt 0:00:09]} Qxf6 {[%emt 0:00:42]} 24. Qb5 {[%emt 0:04:49]} Qe5 {[%emt 0:02:11]} 25. a3 {[%emt 0:06:14]} Bd6 {[%emt 0:03:00][%csl Gd6][%cal Re5h2]} 26. f4 {[%emt 0:00:37]} (26. Qxb7 $2 Qh2#) (26. Rh1 $18) 26... Rxf4 $1 $14 {[%emt 0:00:35] And now ...Qe4+ would win.} (26... Qe4+ $2 27. Bf3 Qf5 28. Qxf5 (28. Qxb7 Na5 $16) 28... Rxf5 29. Rxd3 $18) 27. Qxe5+ {[%emt 0:00:20]} Bxe5 {[%emt 0:00:01]} 28. Bxf4 {[%emt 0:00:14]} Bxf4 {[%emt 0:00:06]} 29. Rfe1 {[%emt 0:00:46]} d2 {[%emt 0:00:45]} 30. Re4 {[%emt 0:00:22]} g5 {[%emt 0:02:49] [#]} ({Better is} 30... Rf8) 31. h4 $1 $16 {[%emt 0:00:26]} Rd4 {[%emt 0:00:38]} (31... Kg7 $16 {is a better defense.} 32. hxg5 Bxg5) 32. Rxd4 $18 {[%emt 0:00:34]} Nxd4 {[%emt 0:00:01]} 33. hxg5 {[%emt 0:00:13][%mdl 4096] Endgame KRB-KBN} Kg7 {[%emt 0:01:28]} 34. Rh1 {[%emt 0:01:44]} Kg6 {[%emt 0:02:12]} 35. Bd1 {[%emt 0:00:24]} Kxg5 {[%emt 0:00:49] [#]} 36. Rh5+ $1 {[%emt 0:00:19]} Kf6 {[%emt 0:07:14]} 37. Rd5 {[%emt 0:00:07]} Ne6 {[%emt 0:01:15]} 38. Kf3 {[%emt 0:00:39]} c6 {[%emt 0:03:33]} 39. Rd7 {[%emt 0:02:19]} Ke5 {[%emt 0:01:21]} 40. Rxb7 {[%emt 0:02:29]} Nd4+ {[%emt 0:01:43]} 41. Kg4 {[%emt 0:30:11] Weighted Error Value: White=0.21 (precise) /Black=0.35} 1-0

[Event "Marienbad B1-IM 2024"]
[Site "Marianske Lazne"]
[Date "2024.01.18"]
[Round "7.14"]
[White "Hak, David"]
[Black "Ashwath, R.."]
[Result "1/2-1/2"]
[ECO "E04"]
[WhiteElo "2310"]
[BlackElo "2284"]
[Annotator "RC"]
[PlyCount "110"]
[EventDate "2024.01.10"]
[EventType "tourn"]
[EventCountry "CZE"]
[SourceTitle "playchess.com"]
[Source "ChessBase"]
[SourceQuality "1"]
[TimeControl "40/5400+30:1800+30"]

1. d4 {[%emt 0:02:32]} Nf6 {[%emt 0:03:25]} 2. Nf3 {[%emt 0:00:09]} d5 {[%emt 0:00:10]} 3. c4 {[%emt 0:00:08]} e6 {[%emt 0:00:05]} 4. g3 {[%emt 0:00:06]} dxc4 {[%emt 0:01:17]} 5. Bg2 {[%emt 0:00:13]} c6 {[%emt 0:00:10]} 6. O-O {[%emt 0:00:21]} b5 {[%emt 0:00:32]} 7. Ne5 {[%emt 0:01:30]} Bb7 {[%emt 0:01:04]} 8. Nc3 {[%emt 0:00:47]} a6 {[%emt 0:07:01]} 9. a4 {[%emt 0:21:35]} Nd5 {[%emt 0:16:16]} 10. e4 {[%emt 0:03:30]} Nxc3 {[%emt 0:02:45]} 11. bxc3 {[%emt 0:00:06]} Nd7 {[%emt 0:04:11]} 12. f4 {[%emt 0:07:46]} Qc7 {[%emt 0:06:01]} 13. Qg4 {[%emt 0:13:11]} c5 {[%emt 0:06:22]} 14. axb5 {[%emt 0:13:46]} cxd4 {[%emt 0:07:11]} 15. cxd4 {[%emt 0:06:06]} axb5 {[%emt 0:05:09]} 16. Rxa8+ {[%emt 0:00:36]} Bxa8 {[%emt 0:00:22]} 17. Nxd7 {[%emt 0:04:36]} Qxd7 {[%emt 0:02:03]} 18. Be3 {[%emt 0:00:32]} f5 {[%emt 0:06:18]} 19. exf5 {[%emt 0:04:11]} exf5 {[%emt 0:03:23]} 20. Qe2 {[%emt 0:00:30]} Bxg2 {[%emt 0:00:55]} 21. Qxg2 {[%emt 0:00:02]} Be7 {[%emt 0:00:49]} 22. Qa8+ {[%emt 0:03:36]} Bd8 {[%emt 0:00:34]} 23. Rb1 {[%emt 0:03:16]} O-O {[%emt 0:04:14]} 24. Qa6 {[%emt 0:00:34]} Re8 {[%emt 0:03:44]} 25. Bf2 {[%emt 0:00:14]} Bf6 {[%emt 0:10:09]} 26. Qxb5 {[%emt 0:00:38]} Qxb5 {[%emt 0:00:05]} 27. Rxb5 {[%emt 0:00:09]} Rc8 {[%emt 0:01:09]} 28. Kf1 {[%emt 0:10:28]} c3 {[%emt 0:00:42]} 29. Rc5 {[%emt 0:01:06]} Rxc5 {[%emt 0:01:48]} 30. dxc5 {[%emt 0:00:01]} c2 {[%emt 0:01:04]} 31. Be3 {[%emt 0:00:01]} Bd4 {[%emt 0:01:26]} 32. Bc1 {[%emt 0:00:07]} Bxc5 {[%emt 0:00:03]} 33. Ke2 {[%emt 0:00:10]} Kf7 {[%emt 0:00:45]} 34. h3 {[%emt 0:02:39]} Ke6 {[%emt 0:01:06]} 35. Kd3 {[%emt 0:00:52]} Kd5 {[%emt 0:00:28]} 36. g4 {[%emt 0:01:25]} fxg4 {[%emt 0:03:27]} 37. hxg4 {[%emt 0:00:02]} Be7 {[%emt 0:00:03]} 38. Kxc2 {[%emt 0:00:48]} Ke4 {[%emt 0:00:02]} 39. f5 {[%emt 0:01:03]} Bd6 {[%emt 0:02:56]} 40. Kd1 {[%emt 0:00:18]} Bf4 {[%emt 0:00:35]} 41. Bb2 {[%emt 0:30:11]} Be5 {[%emt 0:30:18]} 42. Bc1 {[%emt 0:00:10]} Bf4 {[%emt 0:00:00]} 43. Bb2 {[%emt 0:00:00]} Be5 {[%emt 0:00:00]} 44. Bc1 {[%emt 0:00:00]} Kf3 {[%emt 0:00:00]} 45. g5 {[%emt 0:00:00]} Kg4 {[%emt 0:00:00]} 46. f6 {[%emt 0:00:00]} gxf6 {[%emt 0:00:00]} 47. gxf6 {[%emt 0:00:00]} Bxf6 {[%emt 0:00:00]} 48. Bh6 {[%emt 0:00:00]} Kh5 {[%emt 0:00:00]} 49. Be3 {[%emt 0:00:00]} Kg6 {[%emt 0:00:00]} 50. Ke2 {[%emt 0:00:00]} h5 {[%emt 0:00:00]} 51. Kf3 {[%emt 0:00:00]} Kf5 {[%emt 0:00:00]} 52. Bf2 {[%emt 0:00:00]} Bg5 {[%emt 0:00:00]} 53. Kg2 {[%emt 0:00:00]} Kg4 {[%emt 0:00:00]} 54. Be1 {[%emt 0:00:00]} h4 {[%emt 0:00:00]} 55. Bxh4 {[%emt 0:00:00]} Bxh4 {[%emt 0:00:00]} 1/2-1/2

[Event "Marienbad B1-IM 2024"]
[Site "Marianske Lazne"]
[Date "2024.01.18"]
[Round "7.15"]
[White "Kulkarni Bhakti"]
[Black "Zdybel, Przemyslaw"]
[Result "0-1"]
[ECO "E00"]
[WhiteElo "2364"]
[BlackElo "2180"]
[Annotator "RC"]
[PlyCount "118"]
[EventDate "2024.01.10"]
[EventType "tourn"]
[EventCountry "CZE"]
[SourceTitle "playchess.com"]
[Source "ChessBase"]
[SourceQuality "1"]
[TimeControl "40/5400+30:1800+30"]

1. d4 {[%emt 0:05:37]} Nf6 {[%emt 0:01:13]} 2. c4 {[%emt 0:00:51]} e6 {[%emt 0:00:16]} 3. Bf4 {[%emt 0:01:24]} Bb4+ {[%emt 0:07:39]} 4. Nd2 {[%emt 0:04:06]} b6 {[%emt 0:07:11]} 5. a3 {[%emt 0:01:16]} Bxd2+ {[%emt 0:00:36]} 6. Qxd2 {[%emt 0:00:09]} Bb7 {[%emt 0:00:36]} 7. Nf3 {[%emt 0:01:39]} d6 {[%emt 0:00:53]} 8. e3 {[%emt 0:15:54]} Nbd7 {[%emt 0:03:00]} 9. Qc2 {[%emt 0:07:42]} Qe7 {[%emt 0:02:09]} 10. O-O-O {[%emt 0:08:44]} h6 {[%emt 0:14:20]} 11. h3 {[%emt 0:03:47]} e5 {[%emt 0:04:46]} 12. Bh2 {[%emt 0:02:59]} O-O {[%emt 0:00:38]} 13. Be2 {[%emt 0:05:47]} Be4 {[%emt 0:10:40]} 14. Qb3 {[%emt 0:00:32]} Bh7 {[%emt 0:08:48]} 15. Rhe1 {[%emt 0:08:39]} a5 {[%emt 0:07:43]} 16. a4 {[%emt 0:03:17]} c6 {[%emt 0:01:44]} 17. Qa3 {[%emt 0:04:04]} Ne4 {[%emt 0:02:35]} 18. dxe5 {[%emt 0:06:22]} Nxf2 {[%emt 0:03:13]} 19. Rd4 {[%emt 0:06:08]} Qe6 {[%emt 0:05:01]} 20. exd6 {[%emt 0:01:10]} Qg6 {[%emt 0:01:09]} 21. e4 {[%emt 0:00:40]} c5 {[%emt 0:01:05]} 22. Rd2 {[%emt 0:01:47]} Qxe4 {[%emt 0:00:28]} 23. Qa2 {[%emt 0:00:34]} Rfe8 {[%emt 0:01:15]} 24. Bg1 {[%emt 0:00:47]} Qe3 {[%emt 0:04:28]} 25. Bxf2 {[%emt 0:01:15]} Qxf2 {[%emt 0:00:08]} 26. Bd1 {[%emt 0:00:45]} Qg3 {[%emt 0:00:13]} 27. Re7 {[%emt 0:00:33]} Nf6 {[%emt 0:01:17]} 28. Qb3 {[%emt 0:00:40]} Rxe7 {[%emt 0:04:14]} 29. dxe7 {[%emt 0:00:04]} Qc7 {[%emt 0:00:04]} 30. Re2 {[%emt 0:01:40]} Re8 {[%emt 0:00:05]} 31. Bc2 {[%emt 0:00:43]} Bxc2 {[%emt 0:00:47]} 32. Kxc2 {[%emt 0:00:08]} Nh5 {[%emt 0:01:19]} 33. Qb5 {[%emt 0:01:31]} Rxe7 {[%emt 0:02:59]} 34. Rxe7 {[%emt 0:00:17]} Qxe7 {[%emt 0:00:02]} 35. Qxb6 {[%emt 0:00:18]} Qe4+ {[%emt 0:00:11]} 36. Kd1 {[%emt 0:03:16]} Nf4 {[%emt 0:02:11]} 37. Qd8+ {[%emt 0:01:41]} Kh7 {[%emt 0:00:05]} 38. Nd2 {[%emt 0:00:16]} Qxg2 {[%emt 0:02:29]} 39. Qxa5 {[%emt 0:00:46]} Qe2+ {[%emt 0:01:23]} 40. Kc2 {[%emt 0:00:14]} Nd3 {[%emt 0:00:33]} 41. Kc3 {[%emt 0:12:31]} f5 {[%emt 0:16:13]} 42. Qb6 {[%emt 0:07:22]} Qe3 {[%emt 0:02:51]} 43. Kc2 {[%emt 0:00:49]} Nb4+ {[%emt 0:01:17]} 44. Kd1 {[%emt 0:00:04]} Qg1+ {[%emt 0:01:27]} 45. Ke2 {[%emt 0:00:02]} Nc2 {[%emt 0:01:54]} 46. Kd3 {[%emt 0:05:38]} Ne1+ {[%emt 0:02:12]} 47. Ke2 {[%emt 0:00:05]} Ng2 {[%emt 0:03:20]} 48. Qd6 {[%emt 0:00:41]} Qe3+ {[%emt 0:01:00]} 49. Kd1 {[%emt 0:00:24]} Qe1+ {[%emt 0:02:25]} 50. Kc2 {[%emt 0:00:01]} Ne3+ {[%emt 0:00:30]} 51. Kb3 {[%emt 0:01:13]} Qd1+ {[%emt 0:00:19]} 52. Ka3 {[%emt 0:01:19]} Qxd2 {[%emt 0:00:40]} 53. Qxc5 {[%emt 0:00:53]} Qd3+ {[%emt 0:01:18]} 54. Kb4 {[%emt 0:01:46]} f4 {[%emt 0:00:31]} 55. a5 {[%emt 0:00:43]} f3 {[%emt 0:00:28]} 56. a6 {[%emt 0:00:30]} f2 {[%emt 0:00:25]} 57. a7 {[%emt 0:00:08]} f1=Q {[%emt 0:00:28]} 58. a8=Q {[%emt 0:00:58]} Qxc4+ {[%emt 0:00:09]} 59. Qxc4 {[%emt 0:00:06]} Qxc4+ {[%emt 0:00:05]} 0-1

[Event "Marienbad B1-IM 2024"]
[Site "Marianske Lazne"]
[Date "2024.01.19"]
[Round "8.11"]
[White "Jurek, Josef"]
[Black "Zdybel, Przemyslaw"]
[Result "0-1"]
[ECO "A05"]
[WhiteElo "2242"]
[BlackElo "2180"]
[Annotator "RC"]
[PlyCount "144"]
[EventDate "2024.01.10"]
[EventType "tourn"]
[EventCountry "CZE"]
[SourceTitle "playchess.com"]
[Source "ChessBase"]
[SourceQuality "1"]
[TimeControl "40/5400+30:1800+30"]

1. Nf3 {[%emt 0:00:09]} Nf6 {[%emt 0:00:14]} 2. b3 {[%emt 0:00:14]} g6 {[%emt 0:01:48]} 3. Bb2 {[%emt 0:00:15]} Bg7 {[%emt 0:00:05]} 4. g3 {[%emt 0:00:21]} O-O {[%emt 0:01:04]} 5. Bg2 {[%emt 0:00:11]} d6 {[%emt 0:02:03]} 6. d4 {[%emt 0:00:15]} Nbd7 {[%emt 0:00:38]} 7. O-O {[%emt 0:00:54]} c6 {[%emt 0:01:47]} 8. Nbd2 {[%emt 0:01:40]} d5 {[%emt 0:10:48]} 9. Re1 {[%emt 0:03:34]} Nb6 {[%emt 0:09:39]} 10. e4 {[%emt 0:03:56]} dxe4 {[%emt 0:03:18]} 11. Nxe4 {[%emt 0:00:39]} Nxe4 {[%emt 0:02:15]} 12. Rxe4 {[%emt 0:00:18]} Bf5 {[%emt 0:01:56]} 13. Re1 {[%emt 0:01:11]} Bg4 {[%emt 0:04:14]} 14. h3 {[%emt 0:07:15]} Bxf3 {[%emt 0:00:53]} 15. Qxf3 {[%emt 0:00:43]} e6 {[%emt 0:01:11]} 16. Rad1 {[%emt 0:04:04]} Nd5 {[%emt 0:08:41]} 17. c4 {[%emt 0:04:41]} Nb6 {[%emt 0:13:24]} 18. h4 {[%emt 0:05:33]} Qf6 {[%emt 0:02:30]} 19. Qe4 {[%emt 0:02:23]} Rad8 {[%emt 0:01:32]} 20. Rd3 {[%emt 0:11:02]} Rd7 {[%emt 0:03:56]} 21. Red1 {[%emt 0:03:07]} Rfd8 {[%emt 0:01:44]} 22. Bc3 {[%emt 0:01:31]} Qe7 {[%emt 0:02:13]} 23. Ba5 {[%emt 0:04:58]} Re8 {[%emt 0:04:21]} 24. Qe3 {[%emt 0:07:17]} Nc8 {[%emt 0:02:55]} 25. d5 {[%emt 0:05:54]} exd5 {[%emt 0:02:46]} 26. cxd5 {[%emt 0:08:41]} Qxe3 {[%emt 0:02:29]} 27. fxe3 {[%emt 0:02:34]} b6 {[%emt 0:07:07]} 28. Be1 {[%emt 0:02:57]} c5 {[%emt 0:01:00]} 29. g4 {[%emt 0:07:24]} Nd6 {[%emt 0:00:39]} 30. Bf2 {[%emt 0:03:07]} f5 {[%emt 0:04:33]} 31. gxf5 {[%emt 0:00:36]} gxf5 {[%emt 0:00:02]} 32. Bf3 {[%emt 0:01:29]} Be5 {[%emt 0:01:33]} 33. Kg2 {[%emt 0:01:20]} b5 {[%emt 0:01:01]} 34. Rc1 {[%emt 0:00:46]} c4 {[%emt 0:00:48]} 35. bxc4 {[%emt 0:00:15]} bxc4 {[%emt 0:00:02]} 36. Rdd1 {[%emt 0:01:37]} c3 {[%emt 0:01:27]} 37. Kh3 {[%emt 0:00:42]} Rc7 {[%emt 0:01:16]} 38. Rc2 {[%emt 0:00:54]} Nc4 {[%emt 0:00:39]} 39. d6 {[%emt 0:01:18]} Nxd6 {[%emt 0:00:23]} 40. Be1 {[%emt 0:02:32]} Nb5 {[%emt 0:00:49]} 41. Rd5 {[%emt 0:09:08]} Na3 {[%emt 0:15:47]} 42. Rc1 {[%emt 0:00:10]} c2 {[%emt 0:02:02]} 43. Bd2 {[%emt 0:02:25]} Rg7 {[%emt 0:03:24]} 44. Rxe5 {[%emt 0:04:31]} Rxe5 {[%emt 0:00:06]} 45. Bc3 {[%emt 0:02:54]} Rb5 {[%emt 0:03:17]} 46. Rf1 {[%emt 0:04:10]} Rc7 {[%emt 0:01:49]} 47. Bd2 {[%emt 0:01:10]} Rb1 {[%emt 0:03:29]} 48. Bd5+ {[%emt 0:00:29]} Kg7 {[%emt 0:00:35]} 49. Bc1 {[%emt 0:01:20]} Rd7 {[%emt 0:01:47]} 50. e4 {[%emt 0:04:10]} fxe4 {[%emt 0:01:33]} 51. Bb3 {[%emt 0:00:19]} Rxb3+ {[%emt 0:01:54]} 52. axb3 {[%emt 0:00:53]} Rd1 {[%emt 0:00:10]} 53. Bb2+ {[%emt 0:00:24]} Kg8 {[%emt 0:00:27]} 54. Rf4 {[%emt 0:02:26]} c1=Q {[%emt 0:00:35]} 55. Bxc1 {[%emt 0:00:07]} Rxc1 {[%emt 0:00:04]} 56. Rxe4 {[%emt 0:00:12]} Rc3+ {[%emt 0:00:19]} 57. Kg4 {[%emt 0:00:19]} Rxb3 {[%emt 0:00:11]} 58. Re7 {[%emt 0:01:14]} a5 {[%emt 0:00:53]} 59. h5 {[%emt 0:01:26]} Rb4+ {[%emt 0:00:19]} 60. Kg5 {[%emt 0:00:56]} Rb5+ {[%emt 0:00:04]} 61. Kh6 {[%emt 0:00:24]} Rb6+ {[%emt 0:00:06]} 62. Kg5 {[%emt 0:00:17]} h6+ {[%emt 0:00:41]} 63. Kf5 {[%emt 0:00:11]} Ra6 {[%emt 0:00:51]} 64. Rb7 {[%emt 0:01:10]} a4 {[%emt 0:01:00]} 65. Rb8+ {[%emt 0:00:27]} Kf7 {[%emt 0:00:05]} 66. Rb7+ {[%emt 0:00:11]} Kf8 {[%emt 0:00:48]} 67. Rb8+ {[%emt 0:00:39]} Ke7 {[%emt 0:00:05]} 68. Rb7+ {[%emt 0:00:19]} Kd8 {[%emt 0:00:11]} 69. Rb8+ {[%emt 0:01:09]} Kd7 {[%emt 0:00:28]} 70. Rg8 {[%emt 0:03:09]} Nb5 {[%emt 0:00:10]} 71. Rg7+ {[%emt 0:00:28]} Kc8 {[%emt 0:00:05]} 72. Rg6 {[%emt 0:00:28]} Nc7 {[%emt 0:00:33]} 0-1

[Event "Marienbad B1-IM 2024"]
[Site "Marianske Lazne"]
[Date "2024.01.19"]
[Round "8.12"]
[White "Ashwath, R.."]
[Black "Kulkarni Bhakti"]
[Result "1/2-1/2"]
[ECO "B15"]
[WhiteElo "2284"]
[BlackElo "2364"]
[Annotator "RC"]
[PlyCount "50"]
[EventDate "2024.01.10"]
[EventType "tourn"]
[EventCountry "CZE"]
[SourceTitle "playchess.com"]
[Source "ChessBase"]
[SourceQuality "1"]
[TimeControl "40/5400+30:1800+30"]

1. e4 {[%emt 0:08:39]} c6 {[%emt 0:00:39]} 2. d4 {[%emt 0:00:41]} d5 {[%emt 0:00:16]} 3. Nc3 {[%emt 0:00:11]} dxe4 {[%emt 0:00:30]} 4. Nxe4 {[%emt 0:00:10]} Nf6 {[%emt 0:00:40]} 5. Nxf6+ {[%emt 0:00:16]} exf6 {[%emt 0:00:16]} 6. c3 {[%emt 0:00:16]} Bd6 {[%emt 0:00:21]} 7. Bd3 {[%emt 0:00:17]} O-O {[%emt 0:00:21]} 8. Qc2 {[%emt 0:00:32]} Re8+ {[%emt 0:00:33]} 9. Ne2 {[%emt 0:00:12]} h5 {[%emt 0:00:14]} 10. O-O {[%emt 0:01:01]} h4 {[%emt 0:00:55]} 11. h3 {[%emt 0:00:15]} Be6 {[%emt 0:00:39]} 12. Be3 {[%emt 0:01:56]} Nd7 {[%emt 0:02:20]} 13. Rfe1 {[%emt 0:00:29]} Nf8 {[%emt 0:02:52]} 14. Rad1 {[%emt 0:01:33]} Qd7 {[%emt 0:02:24]} 15. Nf4 {[%emt 0:00:23]} g6 {[%emt 0:01:28]} 16. c4 {[%emt 0:01:54]} Rad8 {[%emt 0:01:59]} 17. d5 {[%emt 0:00:57]} Bxf4 {[%emt 0:01:26]} 18. dxe6 {[%emt 0:02:33]} Nxe6 {[%emt 0:01:04]} 19. Bxg6 {[%emt 0:00:33]} Nd4 {[%emt 0:02:10]} 20. Rxd4 {[%emt 0:00:12]} Qxd4 {[%emt 0:00:32]} 21. Bxf7+ {[%emt 0:00:15]} Kxf7 {[%emt 0:00:34]} 22. Qh7+ {[%emt 0:00:04]} Kf8 {[%emt 0:00:15]} 23. Qh8+ {[%emt 0:00:09]} Kf7 {[%emt 0:00:11]} 24. Qh7+ {[%emt 0:00:08]} Kf8 {[%emt 0:00:12]} 25. Qh8+ {[%emt 0:00:03]} Kf7 {[%emt 0:00:04]} 1/2-1/2

[Event "Marienbad B1-IM 2024"]
[Site "Marianske Lazne"]
[Date "2024.01.19"]
[Round "8.13"]
[White "Rasmussen, Casper"]
[Black "Hak, David"]
[Result "0-1"]
[ECO "A45"]
[WhiteElo "2265"]
[BlackElo "2310"]
[Annotator "RC"]
[PlyCount "116"]
[EventDate "2024.01.10"]
[EventType "tourn"]
[EventCountry "CZE"]
[SourceTitle "playchess.com"]
[Source "ChessBase"]
[SourceQuality "1"]
[TimeControl "40/5400+30:1800+30"]

1. d4 {[%emt 0:00:04]} Nf6 {[%emt 0:00:05]} 2. g3 {[%emt 0:00:06]} g6 {[%emt 0:00:08]} 3. Bg2 {[%emt 0:00:06]} Bg7 {[%emt 0:00:06]} 4. e4 {[%emt 0:00:05]} d6 {[%emt 0:00:11]} 5. Nc3 {[%emt 0:00:05]} O-O {[%emt 0:00:09]} 6. Nge2 {[%emt 0:00:08]} Nbd7 {[%emt 0:00:51]} 7. h3 {[%emt 0:00:33]} c6 {[%emt 0:01:08]} 8. O-O {[%emt 0:00:47]} e5 {[%emt 0:00:44]} 9. Be3 {[%emt 0:00:08]} Re8 {[%emt 0:01:15]} 10. a4 {[%emt 0:02:53]} Qa5 {[%emt 0:13:20]} 11. g4 {[%emt 0:01:31]} exd4 {[%emt 0:03:51]} 12. Bxd4 {[%emt 0:00:04]} Nc5 {[%emt 0:17:37]} 13. Ng3 {[%emt 0:10:06]} Qb4 {[%emt 0:05:05]} 14. Re1 {[%emt 0:08:00]} Ne6 {[%emt 0:03:14]} 15. Be3 {[%emt 0:01:08]} Qxb2 {[%emt 0:01:52]} 16. Nce2 {[%emt 0:10:53]} d5 {[%emt 0:06:09]} 17. exd5 {[%emt 0:09:47]} Nxd5 {[%emt 0:00:30]} 18. Bxd5 {[%emt 0:00:53]} cxd5 {[%emt 0:00:28]} 19. c3 {[%emt 0:03:05]} Rd8 {[%emt 0:21:55]} 20. Qd3 {[%emt 0:00:02]} Qb3 {[%emt 0:00:25]} 21. Reb1 {[%emt 0:03:10]} Qc4 {[%emt 0:00:18]} 22. Qxc4 {[%emt 0:00:09]} dxc4 {[%emt 0:00:02]} 23. Rb4 {[%emt 0:00:20]} b6 {[%emt 0:05:03]} 24. a5 {[%emt 0:00:56]} Bf8 {[%emt 0:03:47]} 25. Rbb1 {[%emt 0:02:08]} Bb7 {[%emt 0:06:17]} 26. axb6 {[%emt 0:03:14]} axb6 {[%emt 0:00:01]} 27. Bxb6 {[%emt 0:02:00]} Rxa1 {[%emt 0:02:45]} 28. Rxa1 {[%emt 0:00:00]} Rd3 {[%emt 0:00:28]} 29. Be3 {[%emt 0:01:52]} Bd6 {[%emt 0:00:53]} 30. Nf1 {[%emt 0:06:00]} Be5 {[%emt 0:02:31]} 31. Nd2 {[%emt 0:10:36]} Bd5 {[%emt 0:02:48]} 32. Ra4 {[%emt 0:06:36]} g5 {[%emt 0:00:18]} 33. Rxc4 {[%emt 0:05:04]} Bxc4 {[%emt 0:00:44]} 34. Nxc4 {[%emt 0:00:03]} Bxc3 {[%emt 0:00:32]} 35. Nxc3 {[%emt 0:00:09]} Rxc3 {[%emt 0:00:11]} 36. Nd6 {[%emt 0:01:24]} Rb3 {[%emt 0:01:14]} 37. Nf5 {[%emt 0:03:28]} f6 {[%emt 0:00:38]} 38. h4 {[%emt 0:01:04]} gxh4 {[%emt 0:00:52]} 39. Kh2 {[%emt 0:01:31]} Ng5 {[%emt 0:00:29]} 40. Nxh4 {[%emt 0:01:07]} Kf7 {[%emt 0:00:25]} 41. Nf5 {[%emt 0:34:01]} Rb1 {[%emt 0:03:15]} 42. Nd4 {[%emt 0:00:00]} Ne4 {[%emt 0:04:19]} 43. Kg2 {[%emt 0:00:00]} Nc3 {[%emt 0:00:43]} 44. Nf5 {[%emt 0:00:00]} Nd5 {[%emt 0:00:20]} 45. Bd4 {[%emt 0:00:00]} Rb3 {[%emt 0:00:56]} 46. f3 {[%emt 0:00:00]} Nf4+ {[%emt 0:02:33]} 47. Kf2 {[%emt 0:00:00]} Nh3+ {[%emt 0:02:29]} 48. Kg3 {[%emt 0:00:00]} Ng5 {[%emt 0:00:01]} 49. Be3 {[%emt 0:00:00]} Ra3 {[%emt 0:01:13]} 50. f4 {[%emt 0:03:18]} Ne6 {[%emt 0:01:24]} 51. Kf2 {[%emt 0:01:24]} Nc7 {[%emt 0:01:37]} 52. Nd4 {[%emt 0:03:57]} Nd5 {[%emt 0:00:43]} 53. Bd2 {[%emt 0:00:02]} Ra2 {[%emt 0:02:28]} 54. Ke1 {[%emt 0:00:05]} Ra4 {[%emt 0:02:07]} 55. Ne2 {[%emt 0:00:16]} Ra1+ {[%emt 0:00:08]} 56. Nc1 {[%emt 0:01:32]} Nb6 {[%emt 0:04:26]} 57. f5 {[%emt 0:01:11]} Nc4 {[%emt 0:00:26]} 58. Bf4 {[%emt 0:00:05]} Ne5 {[%emt 0:00:31]} 0-1